[Event "Titled Tuesday Blitz June 20 Late 2023"]
[White "Romero Ruscalleda, Josep"]
[Black "Ricaurte Lopez, Juan Carlos"]
[WhiteFideId "2231859"]
[BlackFideId "3600327"]
[WhiteElo "2183"]
[BlackElo "2200"]
[Result "1-0"]
[Round "4"]
[TimeControl "180+2"]
[Date "2023.06.20"]
[WhiteClock "0:00:17"]
[BlackClock "0:00:00"]
[Board "182"]

1. e4 {[%clk 0:02:56]}  e6 {[%clk 0:02:59]} 2. d4 {[%clk 0:02:55]}  d5 {[%clk 0:02:59]} 3. e5 {[%clk 0:02:56]}  c5 {[%clk 0:02:57]} 4. c3 {[%clk 0:02:57]}  Nc6 {[%clk 0:02:56]} 5. Be3 {[%clk 0:02:57]}  Qb6 {[%clk 0:02:49]} 6. Qd2 {[%clk 0:02:55]}  Bd7 {[%clk 0:02:38]} 7. dxc5 {[%clk 0:02:54]}  Bxc5 {[%clk 0:02:36]} 8. Bxc5 {[%clk 0:02:54]}  Qxc5 {[%clk 0:02:36]} 9. Nf3 {[%clk 0:02:54]}  Nge7 {[%clk 0:02:29]} 10. Bd3 {[%clk 0:02:52]}  Ng6 {[%clk 0:02:24]} 11. Qg5 {[%clk 0:02:45]}  h6 {[%clk 0:02:06]} 12. Qg3 {[%clk 0:02:44]}  O-O {[%clk 0:01:48]} 13. O-O {[%clk 0:02:41]}  Qb6 {[%clk 0:01:40]} 14. b3 {[%clk 0:02:39]}  Qc7 {[%clk 0:01:38]} 15. Re1 {[%clk 0:02:39]}  Nce7 {[%clk 0:01:28]} 16. Nd4 {[%clk 0:02:29]}  a6 {[%clk 0:01:21]} 17. h4 {[%clk 0:02:27]}  f5 {[%clk 0:01:06]} 18. f4 {[%clk 0:01:42]}  Nh8 {[%clk 0:00:57]} 19. Rc1 {[%clk 0:01:38]}  Nc6 {[%clk 0:00:50]} 20. Nxc6 {[%clk 0:01:27]}  Bxc6 {[%clk 0:00:48]} 21. Nd2 {[%clk 0:01:27]}  Nf7 {[%clk 0:00:44]} 22. Nf3 {[%clk 0:01:25]}  b5 {[%clk 0:00:43]} 23. Nd4 {[%clk 0:01:23]}  Bd7 {[%clk 0:00:43]} 24. Qg6 {[%clk 0:01:11]}  Nh8 {[%clk 0:00:41]} 25. Qg3 {[%clk 0:01:07]}  g6 {[%clk 0:00:40]} 26. Rc2 {[%clk 0:00:53]}  Kh7 {[%clk 0:00:38]} 27. Rf1 {[%clk 0:00:51]}  Rac8 {[%clk 0:00:36]} 28. h5 {[%clk 0:00:44]}  gxh5 {[%clk 0:00:32]} 29. Qf3 {[%clk 0:00:41]}  Rg8 {[%clk 0:00:27]} 30. Kf2 {[%clk 0:00:40]}  Rg4 {[%clk 0:00:26]} 31. Rh1 {[%clk 0:00:39]}  Rcg8 {[%clk 0:00:25]} 32. Kf1 {[%clk 0:00:39]}  Nf7 {[%clk 0:00:15]} 33. Rxh5 {[%clk 0:00:36]}  Rg3 {[%clk 0:00:11]} 34. Qd1 {[%clk 0:00:30]}  Rxg2 {[%clk 0:00:09]} 35. Rxg2 {[%clk 0:00:29]}  Rxg2 {[%clk 0:00:09]} 36. Kxg2 {[%clk 0:00:28]}  Qxc3 {[%clk 0:00:09]} 37. Rh3 {[%clk 0:00:23]}  Qb2+ {[%clk 0:00:02]} 38. Ne2 {[%clk 0:00:20]}  Qxa2 {[%clk 0:00:00]} 39. Qc2 {[%clk 0:00:17]} 1-0


[Site "https://www.chess.com"]

[Event "Titled Tuesday Blitz June 20 Late 2023"]
[White "Vifleemskaia, Svetlana"]
[Black "Calderin Gonzalez, Roberto"]
[WhiteFideId "4129490"]
[BlackFideId "5102979"]
[WhiteElo "1930"]
[BlackElo "2102"]
[Result "1-0"]
[Round "4"]
[TimeControl "180+2"]
[Date "2023.06.20"]
[WhiteClock "0:00:13"]
[BlackClock "0:00:19"]
[Board "183"]

1. d4 {[%clk 0:03:00]}  d5 {[%clk 0:02:59]} 2. c4 {[%clk 0:03:01]}  e6 {[%clk 0:02:58]} 3. Nc3 {[%clk 0:03:00]}  Nf6 {[%clk 0:02:57]} 4. cxd5 {[%clk 0:03:00]}  exd5 {[%clk 0:02:50]} 5. Bg5 {[%clk 0:03:00]}  Nbd7 {[%clk 0:02:38]} 6. e3 {[%clk 0:02:59]}  c6 {[%clk 0:02:28]} 7. Bd3 {[%clk 0:03:00]}  Be7 {[%clk 0:02:22]} 8. Nge2 {[%clk 0:03:00]}  O-O {[%clk 0:02:16]} 9. f3 {[%clk 0:03:00]}  Re8 {[%clk 0:02:10]} 10. Bh4 {[%clk 0:03:00]}  Bd6 {[%clk 0:02:06]} 11. Bf2 {[%clk 0:02:58]}  b5 {[%clk 0:02:00]} 12. O-O {[%clk 0:02:56]}  b4 {[%clk 0:01:45]} 13. Na4 {[%clk 0:02:54]}  Qc7 {[%clk 0:01:40]} 14. Ng3 {[%clk 0:02:44]}  h5 {[%clk 0:01:34]} 15. f4 {[%clk 0:02:33]}  Ng4 {[%clk 0:01:29]} 16. Nxh5 {[%clk 0:02:06]}  Nxf2 {[%clk 0:01:28]} 17. Kxf2 {[%clk 0:01:58]}  g6 {[%clk 0:01:23]} 18. Ng3 {[%clk 0:01:56]}  Nf6 {[%clk 0:01:20]} 19. Qc2 {[%clk 0:01:37]}  Ng4+ {[%clk 0:01:18]} 20. Kg1 {[%clk 0:01:36]}  Nxe3 {[%clk 0:01:19]} 21. Qe2 {[%clk 0:01:27]}  Nxf1 {[%clk 0:01:18]} 22. Qxe8+ {[%clk 0:01:27]}  Kg7 {[%clk 0:01:17]} 23. Bxf1 {[%clk 0:01:16]}  Bxf4 {[%clk 0:01:15]} 24. Nc5 {[%clk 0:01:12]}  Bxg3 {[%clk 0:01:07]} 25. hxg3 {[%clk 0:01:11]}  Qxg3 {[%clk 0:01:08]} 26. Qe5+ {[%clk 0:01:02]}  Qxe5 {[%clk 0:01:05]} 27. dxe5 {[%clk 0:01:03]}  Bf5 {[%clk 0:01:03]} 28. Kf2 {[%clk 0:00:55]}  Re8 {[%clk 0:01:03]} 29. Re1 {[%clk 0:00:54]}  Be6 {[%clk 0:00:48]} 30. Bd3 {[%clk 0:00:48]}  Bg4 {[%clk 0:00:41]} 31. Ba6 {[%clk 0:00:28]}  Bf5 {[%clk 0:00:35]} 32. Bb7 {[%clk 0:00:26]}  Re7 {[%clk 0:00:31]} 33. b3 {[%clk 0:00:19]}  a5 {[%clk 0:00:25]} 34. Ba6 {[%clk 0:00:17]}  Ra7 {[%clk 0:00:25]} 35. Bd3 {[%clk 0:00:16]}  Bc8 {[%clk 0:00:24]} 36. e6 {[%clk 0:00:15]}  fxe6 {[%clk 0:00:18]} 37. Nxe6+ {[%clk 0:00:15]}  Kf6 {[%clk 0:00:19]} 38. Nc5 {[%clk 0:00:13]}  Re7 {[%clk 0:00:19]} 39. Rxe7 {[%clk 0:00:12]}  Kxe7 {[%clk 0:00:20]} 40. Ke3 {[%clk 0:00:12]}  Kd6 {[%clk 0:00:20]} 41. Kd4 {[%clk 0:00:12]}  g5 {[%clk 0:00:20]} 42. g3 {[%clk 0:00:12]}  g4 {[%clk 0:00:20]} 43. Bg6 {[%clk 0:00:11]}  Kc7 {[%clk 0:00:19]} 44. Nd3 {[%clk 0:00:10]}  Kd6 {[%clk 0:00:19]} 45. Nc5 {[%clk 0:00:08]}  Kc7 {[%clk 0:00:18]} 46. Ke5 {[%clk 0:00:08]}  Kb6 {[%clk 0:00:18]} 47. Nd3 {[%clk 0:00:08]}  Kb5 {[%clk 0:00:12]} 48. Be8 {[%clk 0:00:08]}  Kb6 {[%clk 0:00:12]} 49. Kd6 {[%clk 0:00:08]}  Bb7 {[%clk 0:00:11]} 50. Nc5 {[%clk 0:00:08]}  Ba8 {[%clk 0:00:11]} 51. Nd7+ {[%clk 0:00:08]}  Kb5 {[%clk 0:00:10]} 52. Ne5 {[%clk 0:00:07]}  Kb6 {[%clk 0:00:10]} 53. Bxc6 {[%clk 0:00:07]}  Bxc6 {[%clk 0:00:10]} 54. Nxc6 {[%clk 0:00:07]}  Kb5 {[%clk 0:00:10]} 55. Kxd5 {[%clk 0:00:06]}  Kb6 {[%clk 0:00:11]} 56. Nd4 {[%clk 0:00:06]}  a4 {[%clk 0:00:09]} 57. bxa4 {[%clk 0:00:05]}  Ka5 {[%clk 0:00:10]} 58. Nc2 {[%clk 0:00:04]}  Kxa4 {[%clk 0:00:11]} 59. Kc4 {[%clk 0:00:05]}  Ka5 {[%clk 0:00:07]} 60. Nxb4 {[%clk 0:00:06]}  Kb6 {[%clk 0:00:08]} 61. a4 {[%clk 0:00:05]}  Ka5 {[%clk 0:00:08]} 62. Kb3 {[%clk 0:00:06]}  Kb6 {[%clk 0:00:07]} 63. Nd3 {[%clk 0:00:07]}  Ka5 {[%clk 0:00:07]} 64. Nb2 {[%clk 0:00:06]}  Kb6 {[%clk 0:00:08]} 65. Nc4+ {[%clk 0:00:06]}  Kc5 {[%clk 0:00:09]} 66. a5 {[%clk 0:00:06]}  Kb5 {[%clk 0:00:09]} 67. Kc3 {[%clk 0:00:07]}  Kc5 {[%clk 0:00:09]} 68. Kd3 {[%clk 0:00:07]}  Kb5 {[%clk 0:00:09]} 69. Ne5 {[%clk 0:00:07]}  Kxa5 {[%clk 0:00:09]} 70. Ke4 {[%clk 0:00:08]}  Kb5 {[%clk 0:00:10]} 71. Kf4 {[%clk 0:00:09]}  Kc5 {[%clk 0:00:11]} 72. Kxg4 {[%clk 0:00:09]}  Kd6 {[%clk 0:00:11]} 73. Kf5 {[%clk 0:00:10]}  Ke7 {[%clk 0:00:11]} 74. g4 {[%clk 0:00:11]}  Kf8 {[%clk 0:00:12]} 75. g5 {[%clk 0:00:11]}  Kg8 {[%clk 0:00:13]} 76. Kg6 {[%clk 0:00:11]}  Kf8 {[%clk 0:00:14]} 77. Kf6 {[%clk 0:00:12]}  Kg8 {[%clk 0:00:15]} 78. g6 {[%clk 0:00:12]}  Kf8 {[%clk 0:00:16]} 79. g7+ {[%clk 0:00:11]}  Kg8 {[%clk 0:00:16]} 80. Ng4 {[%clk 0:00:11]}  Kh7 {[%clk 0:00:15]} 81. Ne5 {[%clk 0:00:11]}  Kh6 {[%clk 0:00:16]} 82. Nd7 {[%clk 0:00:11]}  Kh7 {[%clk 0:00:16]} 83. Kf7 {[%clk 0:00:11]}  Kh6 {[%clk 0:00:16]} 84. g8=Q {[%clk 0:00:12]}  Kh5 {[%clk 0:00:16]} 85. Kf6 {[%clk 0:00:12]}  Kh4 {[%clk 0:00:17]} 86. Kf5 {[%clk 0:00:12]}  Kh3 {[%clk 0:00:18]} 87. Kf4 {[%clk 0:00:13]}  Kh2 {[%clk 0:00:19]} 88. Kf3 {[%clk 0:00:13]}  Kh1 {[%clk 0:00:19]} 89. Qg2# {[%clk 0:00:13]} 1-0


[Site "https://www.chess.com"]

[Event "Titled Tuesday Blitz June 20 Late 2023"]
[White "dorpato"]
[Black "Dimitrijevic, Aleksandra"]
[BlackFideId "929239"]
[WhiteElo "2046"]
[BlackElo "2282"]
[Result "0-1"]
[Round "4"]
[TimeControl "180+2"]
[Date "2023.06.20"]
[WhiteClock "0:00:00"]
[BlackClock "0:01:38"]
[Board "184"]

1. e4 {[%clk 0:02:56]}  c5 {[%clk 0:02:58]} 2. Nc3 {[%clk 0:02:54]}  Nc6 {[%clk 0:02:57]} 3. g3 {[%clk 0:02:35]}  e6 {[%clk 0:02:57]} 4. Bg2 {[%clk 0:02:21]}  Nf6 {[%clk 0:02:56]} 5. d3 {[%clk 0:02:18]}  d5 {[%clk 0:02:53]} 6. exd5 {[%clk 0:02:03]}  exd5 {[%clk 0:02:53]} 7. Nf3 {[%clk 0:01:49]}  Bg4 {[%clk 0:02:42]} 8. O-O {[%clk 0:01:38]}  Be7 {[%clk 0:02:40]} 9. h3 {[%clk 0:01:26]}  Bh5 {[%clk 0:02:39]} 10. Bf4 {[%clk 0:01:08]}  O-O {[%clk 0:02:35]} 11. g4 {[%clk 0:00:52]}  Bg6 {[%clk 0:02:34]} 12. Ne2 {[%clk 0:00:41]}  Qd7 {[%clk 0:02:33]} 13. Ng3 {[%clk 0:00:24]}  Rad8 {[%clk 0:02:29]} 14. Qd2 {[%clk 0:00:18]}  h6 {[%clk 0:02:25]} 15. g5 {[%clk 0:00:18]}  hxg5 {[%clk 0:02:25]} 16. Bxg5 {[%clk 0:00:19]}  Nh5 {[%clk 0:02:24]} 17. Nxh5 {[%clk 0:00:18]}  Bxh5 {[%clk 0:02:23]} 18. Bxe7 {[%clk 0:00:18]}  Nxe7 {[%clk 0:02:21]} 19. Rfe1 {[%clk 0:00:18]}  Bxf3 {[%clk 0:02:16]} 20. Bxf3 {[%clk 0:00:18]}  Qxh3 {[%clk 0:02:16]} 21. Bg2 {[%clk 0:00:17]}  Qh4 {[%clk 0:02:16]} 22. Qa5 {[%clk 0:00:15]}  Rd6 {[%clk 0:02:06]} 23. Qxc5 {[%clk 0:00:15]}  Rfd8 {[%clk 0:02:04]} 24. Re5 {[%clk 0:00:14]}  Ng6 {[%clk 0:02:03]} 25. Re3 {[%clk 0:00:13]}  Nf4 {[%clk 0:02:02]} 26. Rg3 {[%clk 0:00:11]}  Ne2+ {[%clk 0:02:02]} 27. Kf1 {[%clk 0:00:11]}  Nxg3+ {[%clk 0:02:03]} 28. fxg3 {[%clk 0:00:12]}  Qxg3 {[%clk 0:02:03]} 29. Kg1 {[%clk 0:00:10]}  Rg6 {[%clk 0:02:02]} 30. Qf2 {[%clk 0:00:09]}  Qxf2+ {[%clk 0:02:00]} 31. Kxf2 {[%clk 0:00:10]}  b6 {[%clk 0:01:58]} 32. Re1 {[%clk 0:00:10]}  d4 {[%clk 0:01:58]} 33. Re7 {[%clk 0:00:09]}  a5 {[%clk 0:01:58]} 34. Rb7 {[%clk 0:00:10]}  Rc8 {[%clk 0:01:58]} 35. c4 {[%clk 0:00:08]}  dxc3 {[%clk 0:01:57]} 36. bxc3 {[%clk 0:00:08]}  Rxc3 {[%clk 0:01:57]} 37. Rb8+ {[%clk 0:00:08]}  Kh7 {[%clk 0:01:57]} 38. Be4 {[%clk 0:00:08]}  Rc2+ {[%clk 0:01:57]} 39. Ke3 {[%clk 0:00:09]}  Rb2 {[%clk 0:01:57]} 40. Bxg6+ {[%clk 0:00:08]}  Kxg6 {[%clk 0:01:57]} 41. Ke4 {[%clk 0:00:07]}  Kf6 {[%clk 0:01:56]} 42. a4 {[%clk 0:00:05]}  Ke6 {[%clk 0:01:53]} 43. Re8+ {[%clk 0:00:05]}  Kd7 {[%clk 0:01:53]} 44. Rf8 {[%clk 0:00:05]}  Ke7 {[%clk 0:01:50]} 45. Rb8 {[%clk 0:00:04]}  g6 {[%clk 0:01:49]} 46. d4 {[%clk 0:00:04]}  f5+ {[%clk 0:01:47]} 47. Ke5 {[%clk 0:00:04]}  Re2+ {[%clk 0:01:45]} 48. Kd5 {[%clk 0:00:04]}  Kd7 {[%clk 0:01:43]} 49. Rb7+ {[%clk 0:00:04]}  Kc8 {[%clk 0:01:42]} 50. Rg7 {[%clk 0:00:04]}  f4 {[%clk 0:01:42]} 51. Rxg6 {[%clk 0:00:04]}  f3 {[%clk 0:01:42]} 52. Rf6 {[%clk 0:00:04]}  f2 {[%clk 0:01:43]} 53. Kd6 {[%clk 0:00:03]}  Kb7 {[%clk 0:01:40]} 54. d5 {[%clk 0:00:03]}  b5 {[%clk 0:01:39]} 55. axb5 {[%clk 0:00:03]}  Kb6 {[%clk 0:01:39]} 56. Kd7+ {[%clk 0:00:03]}  Kxb5 {[%clk 0:01:40]} 57. d6 {[%clk 0:00:03]}  a4 {[%clk 0:01:39]} 58. Kc8 {[%clk 0:00:03]}  a3 {[%clk 0:01:39]} 59. d7 {[%clk 0:00:02]}  Rc2+ {[%clk 0:01:38]} 60. Kb8 {[%clk 0:00:00]}  Rd2 {[%clk 0:01:38]} 0-1


[Site "https://www.chess.com"]

[Event "Titled Tuesday Blitz June 20 Late 2023"]
[White "Alexikov, Alexander"]
[Black "White, John S."]
[WhiteFideId "14103958"]
[BlackFideId "2502348"]
[WhiteElo "2186"]
[BlackElo "2005"]
[Result "0-1"]
[Round "4"]
[TimeControl "180+2"]
[Date "2023.06.20"]
[WhiteClock "0:00:00"]
[BlackClock "0:00:17"]
[Board "185"]

1. e4 {[%clk 0:03:00]}  c5 {[%clk 0:02:58]} 2. Nf3 {[%clk 0:03:00]}  e6 {[%clk 0:02:57]} 3. d4 {[%clk 0:03:00]}  cxd4 {[%clk 0:02:57]} 4. Nxd4 {[%clk 0:03:00]}  Nc6 {[%clk 0:02:56]} 5. Nc3 {[%clk 0:02:58]}  d6 {[%clk 0:02:55]} 6. Be3 {[%clk 0:02:55]}  Nf6 {[%clk 0:02:53]} 7. f4 {[%clk 0:02:55]}  a6 {[%clk 0:02:48]} 8. Be2 {[%clk 0:02:52]}  Qc7 {[%clk 0:02:47]} 9. O-O {[%clk 0:02:51]}  Be7 {[%clk 0:02:47]} 10. Qe1 {[%clk 0:02:50]}  O-O {[%clk 0:02:46]} 11. Qg3 {[%clk 0:02:44]}  Nxd4 {[%clk 0:02:39]} 12. Bxd4 {[%clk 0:02:43]}  b5 {[%clk 0:02:34]} 13. e5 {[%clk 0:02:40]}  dxe5 {[%clk 0:02:14]} 14. Bxe5 {[%clk 0:02:39]}  Qc5+ {[%clk 0:02:11]} 15. Kh1 {[%clk 0:02:38]}  Bb7 {[%clk 0:02:10]} 16. Bd3 {[%clk 0:02:24]}  g6 {[%clk 0:01:49]} 17. Rae1 {[%clk 0:01:37]}  Rad8 {[%clk 0:01:47]} 18. f5 {[%clk 0:01:14]}  exf5 {[%clk 0:01:36]} 19. Rxf5 {[%clk 0:01:11]}  Qc6 {[%clk 0:01:25]} 20. Bxf6 {[%clk 0:00:51]}  Rxd3 {[%clk 0:01:02]} 21. cxd3 {[%clk 0:00:48]}  Bxf6 {[%clk 0:01:01]} 22. Ne4 {[%clk 0:00:37]}  Bg7 {[%clk 0:00:51]} 23. Rc5 {[%clk 0:00:34]}  Qe6 {[%clk 0:00:44]} 24. b3 {[%clk 0:00:22]}  Re8 {[%clk 0:00:36]} 25. Rf1 {[%clk 0:00:19]}  f5 {[%clk 0:00:26]} 26. Ng5 {[%clk 0:00:08]}  Qe2 {[%clk 0:00:24]} 27. Rfc1 {[%clk 0:00:00]}  Qxa2 {[%clk 0:00:17]} 0-1


[Site "https://www.chess.com"]

[Event "Titled Tuesday Blitz June 20 Late 2023"]
[White "Liang, Awonder"]
[Black "Sviridov, Valery"]
[WhiteFideId "2056437"]
[BlackFideId "4120680"]
[WhiteElo "2508"]
[BlackElo "2457"]
[Result "0-1"]
[Round "5"]
[TimeControl "180+2"]
[Date "2023.06.20"]
[WhiteClock "0:00:00"]
[BlackClock "0:00:52"]
[Board "3"]

1. h4 {[%clk 0:03:00]}  e5 {[%clk 0:02:55]} 2. c4 {[%clk 0:03:00]}  Nf6 {[%clk 0:02:55]} 3. Nc3 {[%clk 0:03:00]}  d5 {[%clk 0:02:55]} 4. cxd5 {[%clk 0:02:59]}  Nxd5 {[%clk 0:02:56]} 5. Nf3 {[%clk 0:03:00]}  Nc6 {[%clk 0:02:56]} 6. e4 {[%clk 0:03:00]}  Ndb4 {[%clk 0:02:55]} 7. d3 {[%clk 0:02:58]}  Bg4 {[%clk 0:02:55]} 8. a3 {[%clk 0:02:58]}  Na6 {[%clk 0:02:55]} 9. b4 {[%clk 0:02:58]}  Nd4 {[%clk 0:02:55]} 10. Be2 {[%clk 0:02:56]}  Bxf3 {[%clk 0:02:55]} 11. Bxf3 {[%clk 0:02:56]}  c6 {[%clk 0:02:53]} 12. h5 {[%clk 0:02:50]}  Nc7 {[%clk 0:02:52]} 13. Bg4 {[%clk 0:02:46]}  a5 {[%clk 0:02:51]} 14. Rb1 {[%clk 0:02:40]}  axb4 {[%clk 0:02:49]} 15. axb4 {[%clk 0:02:41]}  Be7 {[%clk 0:02:49]} 16. O-O {[%clk 0:02:41]}  O-O {[%clk 0:02:46]} 17. Be3 {[%clk 0:02:29]}  Bf6 {[%clk 0:02:36]} 18. Qd2 {[%clk 0:02:22]}  Qd6 {[%clk 0:02:35]} 19. Ne2 {[%clk 0:02:15]}  Ncb5 {[%clk 0:02:28]} 20. Ng3 {[%clk 0:02:10]}  Ra3 {[%clk 0:02:25]} 21. h6 {[%clk 0:02:10]}  g6 {[%clk 0:02:19]} 22. Kh1 {[%clk 0:02:03]}  Rfa8 {[%clk 0:02:18]} 23. Rfd1 {[%clk 0:01:59]}  Ra2 {[%clk 0:02:17]} 24. Qe1 {[%clk 0:02:00]}  Nc2 {[%clk 0:02:14]} 25. Qd2 {[%clk 0:01:58]}  Nxe3 {[%clk 0:02:13]} 26. Qxe3 {[%clk 0:01:59]}  Nc3 {[%clk 0:02:14]} 27. Kh2 {[%clk 0:01:47]}  Nxd1 {[%clk 0:02:13]} 28. Bxd1 {[%clk 0:01:47]}  Qe7 {[%clk 0:02:13]} 29. Bb3 {[%clk 0:01:43]}  Bg5 {[%clk 0:02:13]} 30. Qf3 {[%clk 0:01:38]}  Ra1 {[%clk 0:02:12]} 31. Rxa1 {[%clk 0:01:30]}  Rxa1 {[%clk 0:02:12]} 32. Qg4 {[%clk 0:01:23]}  Bxh6 {[%clk 0:02:09]} 33. Nf5 {[%clk 0:00:58]}  Qg5 {[%clk 0:02:08]} 34. Qxg5 {[%clk 0:00:47]}  Bxg5 {[%clk 0:02:08]} 35. Nd6 {[%clk 0:00:48]}  Rb1 {[%clk 0:01:58]} 36. Ba2 {[%clk 0:00:47]}  Rb2 {[%clk 0:01:58]} 37. Bxf7+ {[%clk 0:00:46]}  Kg7 {[%clk 0:01:58]} 38. Be6 {[%clk 0:00:46]}  Rxb4 {[%clk 0:01:54]} 39. g3 {[%clk 0:00:46]}  Be7 {[%clk 0:01:53]} 40. Nc4 {[%clk 0:00:42]}  Bc5 {[%clk 0:01:53]} 41. Kg2 {[%clk 0:00:36]}  Kf6 {[%clk 0:01:52]} 42. Bg8 {[%clk 0:00:35]}  h6 {[%clk 0:01:51]} 43. f4 {[%clk 0:00:35]}  Bd4 {[%clk 0:01:50]} 44. Kf3 {[%clk 0:00:34]}  b5 {[%clk 0:01:50]} 45. Na5 {[%clk 0:00:33]}  Rb2 {[%clk 0:01:50]} 46. Nxc6 {[%clk 0:00:32]}  Rf2+ {[%clk 0:01:49]} 47. Kg4 {[%clk 0:00:33]}  h5+ {[%clk 0:01:50]} 48. Kh3 {[%clk 0:00:33]}  Rf3 {[%clk 0:01:49]} 49. fxe5+ {[%clk 0:00:25]}  Bxe5 {[%clk 0:01:49]} 50. d4 {[%clk 0:00:25]}  Bxg3 {[%clk 0:00:59]} 51. Kg2 {[%clk 0:00:26]}  Rd3 {[%clk 0:01:00]} 52. e5+ {[%clk 0:00:19]}  Kf5 {[%clk 0:01:00]} 53. e6 {[%clk 0:00:19]}  Kf6 {[%clk 0:00:54]} 54. e7 {[%clk 0:00:18]}  Re3 {[%clk 0:00:55]} 55. Be6 {[%clk 0:00:03]}  Rxe6 {[%clk 0:00:52]} 56. Kxg3 {[%clk 0:00:00]}  Rxe7 {[%clk 0:00:52]} 0-1


[Site "https://www.chess.com"]

[Event "Titled Tuesday Blitz June 20 Late 2023"]
[White "Kollars, Dmitrij"]
[Black "Mikaelyan, Arman"]
[WhiteFideId "12909572"]
[BlackFideId "13304852"]
[WhiteElo "2584"]
[BlackElo "2456"]
[Result "1-0"]
[Round "5"]
[TimeControl "180+2"]
[Date "2023.06.20"]
[WhiteClock "0:00:06"]
[BlackClock "0:00:00"]
[Board "4"]

1. e4 {[%clk 0:02:45]}  e5 {[%clk 0:02:59]} 2. Nf3 {[%clk 0:02:45]}  Nc6 {[%clk 0:03:00]} 3. Bb5 {[%clk 0:02:45]}  a6 {[%clk 0:02:59]} 4. Ba4 {[%clk 0:02:46]}  Nf6 {[%clk 0:03:00]} 5. Nc3 {[%clk 0:02:47]}  b5 {[%clk 0:02:47]} 6. Bb3 {[%clk 0:02:47]}  Bc5 {[%clk 0:02:47]} 7. O-O {[%clk 0:02:44]}  O-O {[%clk 0:02:45]} 8. a4 {[%clk 0:02:44]}  Rb8 {[%clk 0:02:44]} 9. axb5 {[%clk 0:02:44]}  axb5 {[%clk 0:02:45]} 10. Nd5 {[%clk 0:02:45]}  h6 {[%clk 0:02:44]} 11. c3 {[%clk 0:02:44]}  Nxd5 {[%clk 0:02:30]} 12. exd5 {[%clk 0:02:35]}  Ne7 {[%clk 0:02:17]} 13. Nxe5 {[%clk 0:02:35]}  d6 {[%clk 0:02:16]} 14. d4 {[%clk 0:02:29]}  Bb6 {[%clk 0:02:15]} 15. Nd3 {[%clk 0:02:24]}  Bb7 {[%clk 0:01:54]} 16. Qf3 {[%clk 0:02:17]}  Qd7 {[%clk 0:01:53]} 17. Re1 {[%clk 0:02:13]}  Rfe8 {[%clk 0:01:53]} 18. Bd2 {[%clk 0:02:09]}  Ng6 {[%clk 0:01:47]} 19. g3 {[%clk 0:02:05]}  Rxe1+ {[%clk 0:01:41]} 20. Rxe1 {[%clk 0:02:06]}  Re8 {[%clk 0:01:41]} 21. Rxe8+ {[%clk 0:02:00]}  Qxe8 {[%clk 0:01:42]} 22. h4 {[%clk 0:02:00]}  Ne7 {[%clk 0:01:36]} 23. Nf4 {[%clk 0:01:54]}  Qd7 {[%clk 0:01:33]} 24. Bc2 {[%clk 0:01:51]}  c5 {[%clk 0:01:18]} 25. dxc5 {[%clk 0:01:26]}  dxc5 {[%clk 0:01:19]} 26. Qe4 {[%clk 0:01:19]}  f5 {[%clk 0:01:18]} 27. Qe6+ {[%clk 0:00:46]}  Qxe6 {[%clk 0:01:18]} 28. dxe6 {[%clk 0:00:47]}  c4 {[%clk 0:01:18]} 29. h5 {[%clk 0:00:44]}  Bf3 {[%clk 0:01:05]} 30. Ng6 {[%clk 0:00:37]}  Nxg6 {[%clk 0:00:39]} 31. hxg6 {[%clk 0:00:38]}  Kf8 {[%clk 0:00:40]} 32. Bxf5 {[%clk 0:00:36]}  Ke7 {[%clk 0:00:40]} 33. g4 {[%clk 0:00:16]}  Bd5 {[%clk 0:00:36]} 34. Kf1 {[%clk 0:00:09]}  Bxe6 {[%clk 0:00:35]} 35. Bxe6 {[%clk 0:00:08]}  Kxe6 {[%clk 0:00:35]} 36. f4 {[%clk 0:00:09]}  Kf6 {[%clk 0:00:31]} 37. f5 {[%clk 0:00:10]}  h5 {[%clk 0:00:32]} 38. gxh5 {[%clk 0:00:09]}  Kxf5 {[%clk 0:00:33]} 39. Ke2 {[%clk 0:00:09]}  Bc7 {[%clk 0:00:16]} 40. Kf3 {[%clk 0:00:09]}  Be5 {[%clk 0:00:17]} 41. Bc1 {[%clk 0:00:07]}  Bf6 {[%clk 0:00:16]} 42. Bf4 {[%clk 0:00:06]}  b4 {[%clk 0:00:16]} 43. cxb4 {[%clk 0:00:07]}  Bxb2 {[%clk 0:00:16]} 44. b5 {[%clk 0:00:06]}  c3 {[%clk 0:00:14]} 45. b6 {[%clk 0:00:06]}  c2 {[%clk 0:00:14]} 46. b7 {[%clk 0:00:07]}  Be5 {[%clk 0:00:15]} 47. Bc1 {[%clk 0:00:04]}  Ke6 {[%clk 0:00:09]} 48. Ke4 {[%clk 0:00:05]}  Bh2 {[%clk 0:00:04]} 49. Kd3 {[%clk 0:00:05]}  Be5 {[%clk 0:00:03]} 50. Kxc2 {[%clk 0:00:05]}  Kd7 {[%clk 0:00:04]} 51. Bb2 {[%clk 0:00:05]}  Bf4 {[%clk 0:00:01]} 52. Bxg7 {[%clk 0:00:05]}  Kc7 {[%clk 0:00:02]} 53. h6 {[%clk 0:00:06]}  Be5 {[%clk 0:00:00]} 54. Bxe5+ {[%clk 0:00:06]} 1-0


[Site "https://www.chess.com"]

[Event "Titled Tuesday Blitz June 20 Late 2023"]
[White "Firouzja, Alireza"]
[Black "Jaracz, Pawel"]
[WhiteFideId "12573981"]
[BlackFideId "1102222"]
[WhiteElo "2896"]
[BlackElo "2454"]
[Result "1-0"]
[Round "5"]
[TimeControl "180+2"]
[Date "2023.06.20"]
[WhiteClock "0:01:38"]
[BlackClock "0:00:08"]
[Board "6"]

1. d4 {[%clk 0:03:00]}  Nf6 {[%clk 0:02:58]} 2. Bg5 {[%clk 0:02:59]}  Ne4 {[%clk 0:02:57]} 3. Bf4 {[%clk 0:02:59]}  e6 {[%clk 0:02:57]} 4. f3 {[%clk 0:02:49]}  Nf6 {[%clk 0:02:57]} 5. e4 {[%clk 0:02:45]}  d5 {[%clk 0:02:57]} 6. Nc3 {[%clk 0:02:32]}  Be7 {[%clk 0:02:50]} 7. Bd3 {[%clk 0:02:27]}  c5 {[%clk 0:02:40]} 8. dxc5 {[%clk 0:02:26]}  Nc6 {[%clk 0:02:36]} 9. Qd2 {[%clk 0:02:22]}  Bxc5 {[%clk 0:02:33]} 10. exd5 {[%clk 0:02:17]}  Nxd5 {[%clk 0:02:27]} 11. O-O-O {[%clk 0:02:16]}  Bb4 {[%clk 0:02:23]} 12. Nge2 {[%clk 0:02:13]}  Qa5 {[%clk 0:02:17]} 13. a3 {[%clk 0:01:53]}  Nxc3 {[%clk 0:01:06]} 14. Nxc3 {[%clk 0:01:54]}  Bxc3 {[%clk 0:00:55]} 15. Qxc3 {[%clk 0:01:55]}  Qxc3 {[%clk 0:00:54]} 16. bxc3 {[%clk 0:01:56]}  O-O {[%clk 0:00:43]} 17. Bd6 {[%clk 0:01:52]}  Rd8 {[%clk 0:00:40]} 18. Be4 {[%clk 0:01:51]}  Bd7 {[%clk 0:00:40]} 19. Bc7 {[%clk 0:01:51]}  f5 {[%clk 0:00:29]} 20. Bxc6 {[%clk 0:01:50]}  bxc6 {[%clk 0:00:25]} 21. Bxd8 {[%clk 0:01:50]}  Rxd8 {[%clk 0:00:26]} 22. Rd4 {[%clk 0:01:51]}  Kf7 {[%clk 0:00:26]} 23. Rhd1 {[%clk 0:01:47]}  Ke7 {[%clk 0:00:26]} 24. Rb4 {[%clk 0:01:46]}  a5 {[%clk 0:00:13]} 25. Rb7 {[%clk 0:01:46]}  a4 {[%clk 0:00:12]} 26. c4 {[%clk 0:01:42]}  c5 {[%clk 0:00:13]} 27. Rc7 {[%clk 0:01:40]}  g5 {[%clk 0:00:08]} 28. Rxc5 {[%clk 0:01:38]} 1-0


[Site "https://www.chess.com"]